{"text_format":"1","workbook":"xlsx","n_sheets":3,"sheets":["الغيابات","إشعار1","مراسلة1"],"not_rendered":{"charts":0,"images":1,"macros":1,"external_links":6,"defined_names":79,"comments":0,"pivot_tables":0},"unopened":[],"bounds":{"document_bytes":16777216,"sheet_cells":100000,"rows_first":2000,"rows_last":500,"rows_between":2000,"halvings":0,"cell_chars":16384,"cell_head_chars":4096},"cells_cut":0,"cells_raw":0,"read":"whole","date_system":"1900"}

{"sheet":"الغيابات","index":0,"n_rows":23,"n_cols":241,"rows_kept":23,"cut":false,"hidden":false,"merged":[[2,0,2,1],[0,0,0,1],[0,102,1,102],[1,0,1,1],[1,10,1,14],[1,15,1,19],[3,4,4,4],[3,0,4,0],[3,1,4,1],[3,2,4,2],[3,3,4,3]]}
[null,null,null,null,null,null,null,null,null,null,null,null,null,null,null,null,null,null,null,null,null,null,null,null,null,null,null,null,null,null,null,null,null,null,null,1]
[null,null,null,null,null,null,null,null,null,null,"اكتب بداية العام الدراسي هنا",null,null,null,null,"2017-10-01"]
[]
["الرقم","اللقب والاسم","القسم","اسم الولي","العنــوان ",{"$f":"F5","v":"2017-10-01"},{"$f":"F4+1","v":"2017-10-02"},{"$f":"G4+1","v":"2017-10-03"},"2017-10-04","2017-10-05","2017-10-06","2017-10-07","2017-10-08","2017-10-09","2017-10-10","2017-10-11","2017-10-12","2017-10-13","2017-10-14","2017-10-15","2017-10-16","2017-10-17","2017-10-18",{"$f":"W4+1","v":"2017-10-19"},"2017-10-20","2017-10-21","2017-10-22","2017-10-23","2017-10-24","2017-10-25","2017-10-26","2017-10-27","2017-10-28","2017-10-29","2017-10-30","2017-10-31","2017-11-01","2017-11-02","2017-11-03",{"$f":"AM4+1","v":"2017-11-04"},"2017-11-05","2017-11-06","2017-11-07","2017-11-08","2017-11-09","2017-11-10","2017-11-11","2017-11-12","2017-11-13","2017-11-14","2017-11-15","2017-11-16","2017-11-17","2017-11-18","2017-11-19",{"$f":"BC4+1","v":"2017-11-20"},"2017-11-21","2017-11-22","2017-11-23","2017-11-24","2017-11-25","2017-11-26","2017-11-27","2017-11-28","2017-11-29","2017-11-30","2017-12-01","2017-12-02","2017-12-03","2017-12-04","2017-12-05",{"$f":"BS4+1","v":"2017-12-06"},"2017-12-07","2017-12-08","2017-12-09","2017-12-10","2017-12-11","2017-12-12","2017-12-13","2017-12-14","2017-12-15","2017-12-16","2017-12-17","2017-12-18","2017-12-19","2017-12-20","2017-12-21",{"$f":"CI4+1","v":"2017-12-22"},"2017-12-23","2017-12-24","2017-12-25","2017-12-26","2017-12-27","2017-12-28","2017-12-29","2017-12-30","2017-12-31","2018-01-01","2018-01-02","2018-01-03","2018-01-04","2018-01-05","2018-01-06",{"$f":"CY4+1","v":"2018-01-07"},"2018-01-08","2018-01-09","2018-01-10","2018-01-11","2018-01-12","2018-01-13","2018-01-14","2018-01-15","2018-01-16","2018-01-17","2018-01-18","2018-01-19","2018-01-20","2018-01-21","2018-01-22",{"$f":"DO4+1","v":"2018-01-23"},"2018-01-24","2018-01-25","2018-01-26","2018-01-27","2018-01-28","2018-01-29","2018-01-30","2018-01-31","2018-02-01","2018-02-02","2018-02-03","2018-02-04","2018-02-05","2018-02-06","2018-02-07",{"$f":"EE4+1","v":"2018-02-08"},"2018-02-09","2018-02-10","2018-02-11","2018-02-12","2018-02-13","2018-02-14","2018-02-15","2018-02-16","2018-02-17","2018-02-18","2018-02-19","2018-02-20","2018-02-21","2018-02-22","2018-02-23",{"$f":"EU4+1","v":"2018-02-24"},"2018-02-25","2018-02-26","2018-02-27","2018-02-28","2018-03-01","2018-03-02","2018-03-03","2018-03-04","2018-03-05","2018-03-06","2018-03-07","2018-03-08","2018-03-09","2018-03-10","2018-03-11",{"$f":"FK4+1","v":"2018-03-12"},"2018-03-13","2018-03-14","2018-03-15","2018-03-16","2018-03-17","2018-03-18","2018-03-19","2018-03-20","2018-03-21","2018-03-22","2018-03-23","2018-03-24","2018-03-25","2018-03-26","2018-03-27",{"$f":"GA4+1","v":"2018-03-28"},"2018-03-29","2018-03-30","2018-03-31","2018-04-01","2018-04-02","2018-04-03","2018-04-04","2018-04-05","2018-04-06","2018-04-07","2018-04-08","2018-04-09","2018-04-10","2018-04-11","2018-04-12",{"$f":"GQ4+1","v":"2018-04-13"},"2018-04-14","2018-04-15","2018-04-16","2018-04-17","2018-04-18","2018-04-19","2018-04-20","2018-04-21","2018-04-22","2018-04-23","2018-04-24","2018-04-25","2018-04-26","2018-04-27","2018-04-28",{"$f":"HG4+1","v":"2018-04-29"},"2018-04-30","2018-05-01","2018-05-02","2018-05-03","2018-05-04","2018-05-05","2018-05-06","2018-05-07","2018-05-08","2018-05-09","2018-05-10","2018-05-11","2018-05-12","2018-05-13","2018-05-14",{"$f":"HW4+1","v":"2018-05-15"},"2018-05-16","2018-05-17","2018-05-18","2018-05-19","2018-05-20","2018-05-21","2018-05-22"]
[null,null,null,null,null,{"$f":"P2","v":"2017-10-01"},{"$f":"F5+1","v":"2017-10-02"},"2017-10-03","2017-10-04","2017-10-05","2017-10-06","2017-10-07","2017-10-08","2017-10-09","2017-10-10","2017-10-11","2017-10-12","2017-10-13","2017-10-14","2017-10-15","2017-10-16","2017-10-17","2017-10-18","2017-10-19","2017-10-20","2017-10-21","2017-10-22","2017-10-23","2017-10-24","2017-10-25","2017-10-26","2017-10-27","2017-10-28","2017-10-29","2017-10-30","2017-10-31","2017-11-01","2017-11-02","2017-11-03","2017-11-04","2017-11-05","2017-11-06","2017-11-07","2017-11-08","2017-11-09","2017-11-10","2017-11-11","2017-11-12","2017-11-13","2017-11-14","2017-11-15","2017-11-16","2017-11-17","2017-11-18","2017-11-19","2017-11-20","2017-11-21","2017-11-22","2017-11-23","2017-11-24","2017-11-25","2017-11-26","2017-11-27","2017-11-28","2017-11-29","2017-11-30","2017-12-01","2017-12-02","2017-12-03","2017-12-04","2017-12-05","2017-12-06","2017-12-07","2017-12-08","2017-12-09","2017-12-10","2017-12-11","2017-12-12","2017-12-13","2017-12-14","2017-12-15","2017-12-16","2017-12-17","2017-12-18","2017-12-19","2017-12-20","2017-12-21","2017-12-22","2017-12-23","2017-12-24","2017-12-25","2017-12-26","2017-12-27","2017-12-28","2017-12-29","2017-12-30","2017-12-31","2018-01-01","2018-01-02","2018-01-03","2018-01-04","2018-01-05","2018-01-06","2018-01-07","2018-01-08","2018-01-09","2018-01-10","2018-01-11","2018-01-12","2018-01-13","2018-01-14","2018-01-15","2018-01-16","2018-01-17","2018-01-18","2018-01-19","2018-01-20","2018-01-21","2018-01-22","2018-01-23","2018-01-24","2018-01-25","2018-01-26","2018-01-27","2018-01-28","2018-01-29","2018-01-30","2018-01-31","2018-02-01","2018-02-02","2018-02-03","2018-02-04","2018-02-05","2018-02-06","2018-02-07","2018-02-08","2018-02-09","2018-02-10","2018-02-11","2018-02-12","2018-02-13","2018-02-14","2018-02-15","2018-02-16","2018-02-17","2018-02-18","2018-02-19","2018-02-20","2018-02-21","2018-02-22","2018-02-23","2018-02-24","2018-02-25","2018-02-26","2018-02-27","2018-02-28","2018-03-01","2018-03-02","2018-03-03","2018-03-04","2018-03-05","2018-03-06","2018-03-07","2018-03-08","2018-03-09","2018-03-10","2018-03-11","2018-03-12","2018-03-13","2018-03-14","2018-03-15","2018-03-16","2018-03-17","2018-03-18","2018-03-19","2018-03-20","2018-03-21","2018-03-22","2018-03-23","2018-03-24","2018-03-25","2018-03-26","2018-03-27","2018-03-28","2018-03-29","2018-03-30","2018-03-31","2018-04-01","2018-04-02","2018-04-03","2018-04-04","2018-04-05","2018-04-06","2018-04-07","2018-04-08","2018-04-09","2018-04-10","2018-04-11","2018-04-12","2018-04-13","2018-04-14","2018-04-15","2018-04-16","2018-04-17","2018-04-18","2018-04-19","2018-04-20","2018-04-21","2018-04-22","2018-04-23","2018-04-24","2018-04-25","2018-04-26","2018-04-27","2018-04-28","2018-04-29","2018-04-30","2018-05-01","2018-05-02","2018-05-03","2018-05-04","2018-05-05","2018-05-06","2018-05-07","2018-05-08","2018-05-09","2018-05-10","2018-05-11","2018-05-12","2018-05-13","2018-05-14","2018-05-15","2018-05-16","2018-05-17","2018-05-18","2018-05-19","2018-05-20","2018-05-21","2018-05-22"]
[{"$f":"+IF(B6=0,\"\",SUBTOTAL(3,B$6:B6))","v":1},"عبدالله مسعود","1م1","مسعود","القاهرة","غ","غ","غ",null,null,null,null,null,null,null,null,null,null,null,null,null,null,null,null,null,null,null,null,null,null,null,null,null,null,null,null,null,null,null,null,null,null,null,null,null,null,null,null,null,null,null,null,null,null,null,null,null,null,null,null,null,null,null,null,null,null,null,null,null,null,null,null,null,null,null,null,null,null,null,null,null,null,null,null,null,null,null,null,null,null,null,null,null,null,null,null,null,null,null,null,null,null,null,null,null,null,null,null,null,null,null,null,null,null,null,null,null,null,null,null,null,null,null,null,null,null,null,null,null,null,null,null,null,null,null,null,null,null,null,null,null,null,null,null,null,null,null,null,null,null,null,null,null,null,null,null,null,null,null,null,null,null,null,null,null,null,null,null,null,null,null,null,null,null,null,null,null,null,null,null,null,null,null,null,null,null,null,null,null,null,null,null,null,null,null,null,null,null,null,null,null,null,null,null,null,null,null,null,null,null,null,null,null,null,null,null,null,null,null,null,null,null,null,null,null,null,null,null,null,null,null,null,null,null,null,null,null,null,null,{"$f":"COUNTIF(F6:IE6,\"غ\")","v":3}]
[{"$f":"+IF(B7=0,\"\",SUBTOTAL(3,B$6:B7))","v":2},"سهير","3م4","امحمد","الإسكندرية",null,null,null,null,null,null,null,null,null,null,null,null,null,null,null,null,null,null,null,null,null,null,null,null,null,null,null,null,null,null,null,null,null,null,null,null,null,null,null,null,null,null,null,null,null,null,null,null,null,null,null,null,null,null,null,null,null,null,null,null,null,null,null,null,null,null,null,null,null,null,null,null,null,null,null,null,null,null,null,null,null,null,null,null,null,null,null,null,null,null,null,null,null,null,null,null,null,null,null,null,null,null,null,null,null,null,null,null,null,null,null,null,null,null,null,null,null,null,null,null,null,null,null,null,null,null,null,null,null,null,null,null,null,null,null,null,null,null,null,null,null,null,null,null,null,null,null,null,null,null,null,null,null,null,null,null,null,null,null,null,null,null,null,null,null,null,null,null,null,null,null,null,null,null,null,null,null,null,null,null,null,null,null,null,null,null,null,null,null,null,null,null,null,null,null,null,null,null,null,null,null,null,null,null,null,null,null,null,null,null,null,null,null,null,null,null,null,null,null,null,null,null,null,null,null,null,null,null,null,null,null,null,null,null,{"$f":"COUNTIF(F7:IE7,\"غ\")","v":0}]
[{"$f":"+IF(B8=0,\"\",SUBTOTAL(3,B$6:B8))","v":3},"علي","1م5","رياض",null,null,null,null,null,null,null,null,null,null,null,null,null,null,null,null,null,null,null,null,null,null,null,null,null,null,null,null,null,null,null,null,null,null,null,null,null,null,null,null,null,null,null,null,null,null,null,null,null,null,null,null,null,null,null,null,null,null,null,null,null,null,null,null,null,null,null,null,null,null,null,null,null,null,null,null,null,null,null,null,null,null,null,null,null,null,null,null,null,null,null,null,null,null,null,null,null,null,null,null,null,null,null,null,null,null,null,null,null,null,null,null,null,null,null,null,null,null,null,null,null,null,null,null,null,null,null,null,null,null,null,null,null,null,null,null,null,null,null,null,null,null,null,null,null,null,null,null,null,null,null,null,null,null,null,null,null,null,null,null,null,null,null,null,null,null,null,null,null,null,null,null,null,null,null,null,null,null,null,null,null,null,null,null,null,null,null,null,null,null,null,null,null,null,null,null,null,null,null,null,null,null,null,null,null,null,null,null,null,null,null,null,null,null,null,null,null,null,null,null,null,null,null,null,null,null,null,null,null,null,null,null,null,null,null,0]
[{"$f":"+IF(B9=0,\"\",SUBTOTAL(3,B$6:B9))","v":4},"حياة","2م4","علي",null,null,null,null,null,null,null,null,null,null,null,null,null,null,null,null,null,null,null,null,null,null,null,null,null,null,null,null,null,null,null,null,null,null,null,null,null,null,null,null,null,null,null,null,null,null,null,null,null,null,null,null,null,null,null,null,null,null,null,null,null,null,null,null,null,null,null,null,null,null,null,null,null,null,null,null,null,null,null,null,null,null,null,null,null,null,null,null,null,null,null,null,null,null,null,null,null,null,null,null,null,null,null,null,null,null,null,null,null,null,null,null,null,null,null,null,null,null,null,null,null,null,null,null,null,null,null,null,null,null,null,null,null,null,null,null,null,null,null,null,null,null,null,null,null,null,null,null,null,null,null,null,null,null,null,null,null,null,null,null,null,null,null,null,null,null,null,null,null,null,null,null,null,null,null,null,null,null,null,null,null,null,null,null,null,null,null,null,null,null,null,null,null,null,null,null,null,null,null,null,null,null,null,null,null,null,null,null,null,null,null,null,null,null,null,null,null,null,null,null,null,null,null,null,null,null,null,null,null,null,null,null,null,null,null,0]
[{"$f":"+IF(B10=0,\"\",SUBTOTAL(3,B$6:B10))","v":5},"زيد","4م1","زياد",null,null,null,null,null,null,null,null,null,null,null,null,null,null,null,null,null,null,null,null,null,null,null,null,null,null,null,null,null,null,null,null,null,null,null,null,null,null,null,null,null,null,null,null,null,null,null,null,null,null,null,null,null,null,null,null,null,null,null,null,null,null,null,null,null,null,null,null,null,null,null,null,null,null,null,null,null,null,null,null,null,null,null,null,null,null,null,null,null,null,null,null,null,null,null,null,null,null,null,null,null,null,null,null,null,null,null,null,null,null,null,null,null,null,null,null,null,null,null,null,null,null,null,null,null,null,null,null,null,null,null,null,null,null,null,null,null,null,null,null,null,null,null,null,null,null,null,null,null,null,null,null,null,null,null,null,null,null,null,null,null,null,null,null,null,null,null,null,null,null,null,null,null,null,null,null,null,null,null,null,null,null,null,null,null,null,null,null,null,null,null,null,null,null,null,null,null,null,null,null,null,null,null,null,null,null,null,null,null,null,null,null,null,null,null,null,null,null,null,null,null,null,null,null,null,null,null,null,null,null,null,null,null,null,null,0]
[{"$f":"+IF(B11=0,\"\",SUBTOTAL(3,B$6:B11))","v":6},"تجربة 2/10","سس","سسسسس","سسسسسسسسسسس",null,"غ",null,null,null,null,null,null,null,null,null,null,null,null,null,null,null,null,null,null,null,null,null,null,null,null,null,null,null,null,null,null,null,null,null,null,null,null,null,null,null,null,null,null,null,null,null,null,null,null,null,null,null,null,null,null,null,null,null,null,null,null,null,null,null,null,null,null,null,null,null,null,null,null,null,null,null,null,null,null,null,null,null,null,null,null,null,null,null,null,null,null,null,null,null,null,null,null,null,null,null,null,null,null,null,null,null,null,null,null,null,null,null,null,null,null,null,null,null,null,null,null,null,null,null,null,null,null,null,null,null,null,null,null,null,null,null,null,null,null,null,null,null,null,null,null,null,null,null,null,null,null,null,null,null,null,null,null,null,null,null,null,null,null,null,null,null,null,null,null,null,null,null,null,null,null,null,null,null,null,null,null,null,null,null,null,null,null,null,null,null,null,null,null,null,null,null,null,null,null,null,null,null,null,null,null,null,null,null,null,null,null,null,null,null,null,null,null,null,null,null,null,null,null,null,null,null,null,null,null,null,null,null,null,1]
[{"$f":"+IF(B12=0,\"\",SUBTOTAL(3,B$6:B12))","v":""},null,null,null,null,null,null,null,null,null,null,null,null,null,null,null,null,null,null,null,null,null,null,null,null,null,null,null,null,null,null,null,null,null,null,null,null,null,null,null,null,null,null,null,null,null,null,null,null,null,null,null,null,null,null,null,null,null,null,null,null,null,null,null,null,null,null,null,null,null,null,null,null,null,null,null,null,null,null,null,null,null,null,null,null,null,null,null,null,null,null,null,null,null,null,null,null,null,null,null,null,null,null,null,null,null,null,null,null,null,null,null,null,null,null,null,null,null,null,null,null,null,null,null,null,null,null,null,null,null,null,null,null,null,null,null,null,null,null,null,null,null,null,null,null,null,null,null,null,null,null,null,null,null,null,null,null,null,null,null,null,null,null,null,null,null,null,null,null,null,null,null,null,null,null,null,null,null,null,null,null,null,null,null,null,null,null,null,null,null,null,null,null,null,null,null,null,null,null,null,null,null,null,null,null,null,null,null,null,null,null,null,null,null,null,null,null,null,null,null,null,null,null,null,null,null,null,null,null,null,null,null,null,null,null,null,null,null,null,0]
[{"$f":"+IF(B13=0,\"\",SUBTOTAL(3,B$6:B13))","v":""},null,null,null,null,null,null,null,null,null,null,null,null,null,null,null,null,null,null,null,null,null,null,null,null,null,null,null,null,null,null,null,null,null,null,null,null,null,null,null,null,null,null,null,null,null,null,null,null,null,null,null,null,null,null,null,null,null,null,null,null,null,null,null,null,null,null,null,null,null,null,null,null,null,null,null,null,null,null,null,null,null,null,null,null,null,null,null,null,null,null,null,null,null,null,null,null,null,null,null,null,null,null,null,null,null,null,null,null,null,null,null,null,null,null,null,null,null,null,null,null,null,null,null,null,null,null,null,null,null,null,null,null,null,null,null,null,null,null,null,null,null,null,null,null,null,null,null,null,null,null,null,null,null,null,null,null,null,null,null,null,null,null,null,null,null,null,null,null,null,null,null,null,null,null,null,null,null,null,null,null,null,null,null,null,null,null,null,null,null,null,null,null,null,null,null,null,null,null,null,null,null,null,null,null,null,null,null,null,null,null,null,null,null,null,null,null,null,null,null,null,null,null,null,null,null,null,null,null,null,null,null,null,null,null,null,null,null,null,0]
[{"$f":"+IF(B14=0,\"\",SUBTOTAL(3,B$6:B14))","v":""},null,null,null,null,null,null,null,null,null,null,null,null,null,null,null,null,null,null,null,null,null,null,null,null,null,null,null,null,null,null,null,null,null,null,null,null,null,null,null,null,null,null,null,null,null,null,null,null,null,null,null,null,null,null,null,null,null,null,null,null,null,null,null,null,null,null,null,null,null,null,null,null,null,null,null,null,null,null,null,null,null,null,null,null,null,null,null,null,null,null,null,null,null,null,null,null,null,null,null,null,null,null,null,null,null,null,null,null,null,null,null,null,null,null,null,null,null,null,null,null,null,null,null,null,null,null,null,null,null,null,null,null,null,null,null,null,null,null,null,null,null,null,null,null,null,null,null,null,null,null,null,null,null,null,null,null,null,null,null,null,null,null,null,null,null,null,null,null,null,null,null,null,null,null,null,null,null,null,null,null,null,null,null,null,null,null,null,null,null,null,null,null,null,null,null,null,null,null,null,null,null,null,null,null,null,null,null,null,null,null,null,null,null,null,null,null,null,null,null,null,null,null,null,null,null,null,null,null,null,null,null,null,null,null,null,null,null,null,0]
[{"$f":"+IF(B15=0,\"\",SUBTOTAL(3,B$6:B15))","v":""},null,null,null,null,null,null,null,null,null,null,null,null,null,null,null,null,null,null,null,null,null,null,null,null,null,null,null,null,null,null,null,null,null,null,null,null,null,null,null,null,null,null,null,null,null,null,null,null,null,null,null,null,null,null,null,null,null,null,null,null,null,null,null,null,null,null,null,null,null,null,null,null,null,null,null,null,null,null,null,null,null,null,null,null,null,null,null,null,null,null,null,null,null,null,null,null,null,null,null,null,null,null,null,null,null,null,null,null,null,null,null,null,null,null,null,null,null,null,null,null,null,null,null,null,null,null,null,null,null,null,null,null,null,null,null,null,null,null,null,null,null,null,null,null,null,null,null,null,null,null,null,null,null,null,null,null,null,null,null,null,null,null,null,null,null,null,null,null,null,null,null,null,null,null,null,null,null,null,null,null,null,null,null,null,null,null,null,null,null,null,null,null,null,null,null,null,null,null,null,null,null,null,null,null,null,null,null,null,null,null,null,null,null,null,null,null,null,null,null,null,null,null,null,null,null,null,null,null,null,null,null,null,null,null,null,null,null,null,0]
[null,null,null,null,null,null,null,null,null,null,null,null,null,null,null,null,null,null,null,null,null,null,null,null,null,null,null,null,null,null,null,null,null,null,null,null,null,null,null,null,null,null,null,null,null,null,null,null,null,null,null,null,null,null,null,null,null,null,null,null,null,null,null,null,null,null,null,null,null,null,null,null,null,null,null,null,null,null,null,null,null,null,null,null,null,null,null,null,null,null,null,null,null,null,null,null,null,null,null,null,null,null,null,null,null,null,null,null,null,null,null,null,null,null,null,null,null,null,null,null,null,null,null,null,null,null,null,null,null,null,null,null,null,null,null,null,null,null,null,null,null,null,null,null,null,null,null,null,null,null,null,null,null,null,null,null,null,null,null,null,null,null,null,null,null,null,null,null,null,null,null,null,null,null,null,null,null,null,null,null,null,null,null,null,null,null,null,null,null,null,null,null,null,null,null,null,null,null,null,null,null,null,null,null,null,null,null,null,null,null,null,null,null,null,null,null,null,null,null,null,null,null,null,null,null,null,null,null,null,null,null,null,null,null,null,null,null,null,null,{"$f":"SUM(IF6:IF15)","v":4},"مجموع الغيابات"]
[null,null,null,null,null,null,null,null,null,null,null,null,null,null,null,null,null,null,null,null,null,null,null,null,null,null,null,null,null,null,null,null,null,null,null,null,null,null,null,null,null,null,null,null,null,null,null,null,null,null,null,null,null,null,null,null,null,null,null,null,null,null,null,null,null,null,null,null,null,null,null,null,null,null,null,null,null,null,null,null,null,null,null,null,null,null,null,null,null,null,null,null,null,null,null,null,null,null,null,null,null,null,null,null,null,null,null,null,null,null,null,null,null,null,null,null,null,null,null,null,null,null,null,null,null,null,null,null,null,null,null,null,null,null,null,null,null,null,null,null,null,null,null,null,null,null,null,null,null,null,null,null,null,null,null,null,null,null,null,null,null,null,null,null,null,null,null,null,null,null,null,null,null,null,null,null,null,null,null,null,null,null,null,null,null,null,null,null,null,null,null,null,null,null,null,null,null,null,null,null,null,null,null,null,null,null,null,null,null,null,null,null,null,null,null,null,null,null,null,null,null,null,null,null,null,null,null,null,null,null,null,null,null,null,null,null,null,null,null,{"$f":"COLUMN()","v":240}]
[]
[]
[]
[null,null,null,null,null,null,null,null,null,null,null,null,null,null,null,null,null,null,null,null,null,null,null,null,null,null,null,null,null,null,null,null,null,null,null,null,null,null,null,null,null,null,null,null,null,null,null,null,null,null,null,null,null,null,null,null,null,null,null,null,null,null,null,null,null,null,null,null,null,null,null,null,null,null,null,null,null,null,null,null,null,null,null,null,null,null,null,null,null,null,null,null,null,null,null,null,null,null,null,null,null,null,null,null,null,null,null,null,null,null,null,null,null,null,null,null,null,null,null,null,null,null,null,null,null,null,null,null,null,null,null,null,null,null,null,null,null,null,null,null,null,null,null,null,null,null,null,null,null,null,null,null,null,null,null,null,null,null,null,null,null,null,null,null,null,null,null,null,null,null,null,null,null,null,null,null,null,null,null,null,null,null,null,null,null,null,null,{"$f":"IFERROR(IF(AND(#REF!='[2]التقرير اليومي'!$C$63:$C$102,GF$5='[2]التقرير اليومي'!$N$61),\"غ\",\"\"),\"\")","v":""}]
[null,"ماهو الكود الذي يقوم بترحيل التلاميذ الغائبون "]
[null,"من الخلايا التي فيها ","حرف غ  بعد 3 أيام من الغياب الى شيت اشعار1"]

{"sheet":"إشعار1","index":1,"n_rows":7,"n_cols":6,"rows_kept":7,"cut":false,"hidden":false,"merged":[[0,2,1,4],[2,3,2,4]]}
[]
[]
[null,null,"تاريخ اليوم :","2017-10-02",null,"غ"]
[]
[null,"الرقم","اللقب والاسم","القسم","اسم الولي","العنوان"]
[null,1,"عبدالله مسعود","1م1","مسعود","القاهرة"]
[null,6,"تجربة 2/10","سس","سسسسس","سسسسسسسسسسس"]

{"sheet":"مراسلة1","index":2,"n_rows":21,"n_cols":13,"rows_kept":21,"cut":false,"hidden":false,"merged":[[17,0,17,6],[18,4,18,6],[20,3,20,5],[8,4,8,6],[10,0,10,6],[12,4,12,6],[13,1,13,2],[13,4,13,6],[14,0,14,6],[6,3,7,6],[0,0,0,6],[1,0,1,6],[3,0,3,2],[3,4,3,6],[5,3,5,6],[4,0,4,2]]}
["الجمهورية الجزائرية الديمقراطية الشعبية",null,null,null,null,null,null,null,null,null,null,null,1]
["وزارة التربية الوطنية"]
["مديرية التربية لولاية "]
[null,null,null,null,"السنة الدراسية : 2018/2017"]
[]
[null,null,"إلى السيد:",{"$f":"IFERROR(VLOOKUP($M$1,إشعار1!$B$6:$F$10,4,0),\"\")","v":"مسعود"}]
[null,null,null,{"$f":"IFERROR(VLOOKUP($M$1,إشعار1!$B$6:$F$10,5,0),\"\")","v":"القاهرة"}]
[]
[]
["الموضوع: الاشعار الأول بالغياب"]
["طبقا للمادة21 من القرار الوزاري رقم  833 المؤرخ في 1991/11/13"]
["المتعلق بمواظبة التلاميذ بالمؤسســات التعليمية ."]
["يؤسفني أن أنهي إلى علمكم أن ابنكم(ابنتكم):",null,null,null,{"$f":"IFERROR(VLOOKUP($M$1,إشعار1!$B$6:$F$10,2,0),\"\")","v":"عبدالله مسعود"}]
["من قسم :",{"$f":"IFERROR(VLOOKUP($M$1,إشعار1!$B$6:$F$10,3,0),\"\")","v":"1م1"},null,"غائب منذ:",{"$f":"TODAY()-3","v":"2018-08-24"}]
["وعليه الرجاء منكم الاتصال بالإدارة"]
[]
[]
[]
[null,null,null," في:",{"$f":"TODAY()","v":"2018-08-27"}]
[]
[null,null,null,"مستشار التربية"]